fUST/lending_fUST_20260702
["ID","MTS","AMOUNT","RATE_DAILY","PERIOD"]
[426840040,1782934240000,-200.0,0.00029245,120]
[426840041,1782934240000,-157.47,0.00029246,15]
[426840033,1782934240000,-9169.15030462,0.00029213,2]
[426840044,1782934240000,-252.23493263,0.00029251,2]
[426840047,1782934240000,-214.2308551,0.00029251,2]
[426840045,1782934240000,-394.11708224,0.00029251,2]
[426840049,1782934240000,-186.0,0.00029252,120]
[426840048,1782934240000,-385.22992365,0.00029251,2]
[426840050,1782934240000,-1000.0,0.00029256,2]
[426840051,1782934240000,-1000.0,0.00029256,2]
[426840052,1782934240000,-350.0,0.00029256,2]
[426840053,1782934240000,-87393.69965574,0.00029257,30]
[426840054,1782934240000,-990.69085592,0.00029257,30]
[426840056,1782934240000,-572.7993201,0.00029257,30]
[426840055,1782934240000,-709.06287832,0.00029257,30]
[426840046,1782934240000,-566.96106983,0.00029251,2]
[426840029,1782934240000,-155.0,0.00029178,33]
[426839999,1782934240000,-121968.71572627,0.00029,2]
[426840028,1782934240000,-359.42,0.00029158,3]
[426840002,1782934240000,-1429.0,0.00029,2]
[426840007,1782934240000,-1000.0,0.00029,2]
[426840018,1782934240000,-168.0,0.00029049,120]
[426840008,1782934240000,-434.33951796,0.00029,2]
[426840006,1782934240000,-155.42753514,0.00029,2]
[426840010,1782934240000,-487.0,0.00029,2]
[426840017,1782934240000,-157.47,0.00029046,15]
[426840013,1782934240000,-487.0,0.00029,2]
[426840009,1782934240000,-487.0,0.00029,2]
[426840015,1782934240000,-487.0,0.00029,2]
[426840016,1782934240000,-589.04,0.00029,2]
[426840011,1782934240000,-487.0,0.00029,2]
[426840027,1782934240000,-718.84,0.00029158,3]
[426840014,1782934240000,-487.0,0.00029,2]
[426840012,1782934240000,-487.0,0.00029,2]
[426840024,1782934240000,-185.6,0.00029129,7]
[426840030,1782934240000,-157.47,0.00029196,15]
[426840020,1782934240000,-160.0,0.00029096,30]
[426840025,1782934240000,-344.82926239,0.00029137,60]
[426840026,1782934240000,-157.47,0.00029146,15]
[426840031,1782934240000,-3000.0,0.000292,2]
[426840022,1782934240000,-157.47,0.00029096,15]
[426840021,1782934240000,-250.16737841,0.00029096,30]
[426840019,1782934240000,-170.77985334,0.00029066,30]
[426840023,1782934240000,-151.0,0.000291,11]
[426840074,1782934246000,-97151.63636511,0.00029257,30]
[426840075,1782934246000,-2854.50315543,0.00029257,30]
[426840086,1782934250000,-1000.0,0.00029257,120]
[426840097,1782934250000,-1000.0,0.00029257,120]
[426840084,1782934250000,-1000.0,0.00029257,120]
[426840096,1782934250000,-1000.0,0.00029257,120]
[426840095,1782934250000,-1000.0,0.00029257,120]
[426840078,1782934250000,-1003.03054828,0.0002831,2]
[426840082,1782934250000,-38808.21629437,0.00029257,30]
[426840083,1782934250000,-160.0,0.00029257,30]
[426840081,1782934250000,-999.0,0.00029257,30]
[426840079,1782934250000,-839.96945172,0.0002831,2]
[426840080,1782934250000,-955.81232591,0.00029257,30]
[426840087,1782934250000,-1000.0,0.00029257,120]
[426840085,1782934250000,-1000.0,0.00029257,120]
[426840088,1782934250000,-1000.0,0.00029257,120]
[426840094,1782934250000,-1000.0,0.00029257,120]
[426840090,1782934250000,-1000.0,0.00029257,120]
[426840101,1782934250000,-1000.0,0.00029257,120]
[426840103,1782934250000,-10000.0,0.00029257,2]
[426840106,1782934250000,-112850.41369974,0.00029258,2]
[426840091,1782934250000,-1000.0,0.00029257,120]
[426840102,1782934250000,-172.41,0.00029257,30]
[426840100,1782934250000,-1000.0,0.00029257,120]
[426840105,1782934250000,-60057.70297768,0.00029258,2]
[426840098,1782934250000,-1000.0,0.00029257,120]
[426840099,1782934250000,-1000.0,0.00029257,120]
[426840093,1782934250000,-1000.0,0.00029257,120]
[426840089,1782934250000,-1000.0,0.00029257,120]
[426840092,1782934250000,-1000.0,0.00029257,120]
[426840104,1782934250000,-10000.0,0.00029257,2]
[426840107,1782934292000,-4010.30643793,0.00019896,2]
[426840109,1782934946000,3095.18406203,0.00021388,120]
[426840110,1782934985000,1778.196,0.00028767,120]
[426840180,1782935806000,2700.0,0.00029254,30]
[426840182,1782935838000,3696.8,0.00029254,30]
[426840186,1782936053000,-219.75638623,0.00016,2]
[426840187,1782936070000,-500.0,0.00016,2]
[426840189,1782936087000,-697.98738839,0.00016,7]
[426840191,1782936104000,-697.98738839,0.0001632,7]
[426840192,1782936120000,-208.71641998,0.0001632,7]
[426840195,1782936266000,2211.94133478,0.00029268,120]
[426840197,1782936316000,1000000.0,0.0002876,120]
[426840198,1782936363000,3000000.0,0.000287,120]
[426840202,1782936456000,100000.0,0.00029268,30]
[426840203,1782936496000,2568293.0,0.00029268,30]
[426840205,1782936532000,1195297.63142593,0.00029267,30]
[426840207,1782936583000,804703.0,0.000287,120]
[426840359,1782936639000,-888.90895662,0.00019988,2]
[426840361,1782936639000,-888.90895662,0.00019988,2]
[426840363,1782936639000,-888.90895662,0.00019988,2]
[426840360,1782936639000,-888.90895662,0.00019988,2]
[426840355,1782936639000,-875.44063908,0.00019988,2]
[426840356,1782936639000,-888.90895662,0.00019988,2]
[426840357,1782936639000,-888.90895662,0.00019988,2]
[426840368,1782936639000,-6000.0,0.0002,2]
[426840358,1782936639000,-888.90895662,0.00019988,2]
[426840365,1782936639000,-1185.68985018,0.00019988,2]
[426840369,1782936639000,-456.76062238,0.0002,2]
[426840367,1782936639000,-14328.14752661,0.00019989,2]
[426840366,1782936639000,-1185.68985018,0.00019988,2]
[426840362,1782936639000,-888.90895662,0.00019988,2]
[426840350,1782936639000,-500.0,0.00019988,2]
[426840370,1782936639000,-206.09649866,0.0002,2]
[426840372,1782936639000,-162.55589091,0.0002,2]
[426840375,1782936639000,-1000.0,0.00020091,2]
[426840373,1782936639000,-1000.0,0.00020091,2]
[426840371,1782936639000,-1000.0,0.0002,2]
[426840377,1782936639000,-1000.0,0.0002019,2]
[426840376,1782936639000,-814.22921165,0.00020091,2]
[426840364,1782936639000,-888.90895662,0.00019988,2]
[426840351,1782936639000,-500.0,0.00019988,2]
[426840348,1782936639000,-875.44063908,0.00019988,2]
[426840352,1782936639000,-875.44063908,0.00019988,2]
[426840374,1782936639000,-1000.0,0.00020091,2]
[426840330,1782936639000,-124.44511163,0.000168,7]
[426840329,1782936639000,-280.78439294,0.0001632,7]
[426840331,1782936639000,-573.54227676,0.000168,7]
[426840332,1782936639000,-697.98738839,0.0001728,7]
[426840333,1782936639000,-313.07463001,0.0001728,7]
[426840334,1782936639000,-421.17658941,0.0001728,7]
[426840335,1782936639000,-697.98738839,0.0001792,7]
[426840336,1782936639000,-160.779083,0.00019121,2]
[426840341,1782936639000,-875.44063908,0.00019988,2]
[426840354,1782936639000,-875.44063908,0.00019988,2]
[426840342,1782936639000,-875.44063908,0.00019988,2]
[426840337,1782936639000,-160.0,0.00019496,2]
[426840339,1782936639000,-5803.00413224,0.00019896,7]
[426840338,1782936639000,-300.0,0.00019895,2]
[426840344,1782936639000,-875.44063908,0.00019988,2]
[426840343,1782936639000,-875.44063908,0.00019988,2]
[426840346,1782936639000,-875.44063908,0.00019988,2]
[426840345,1782936639000,-875.44063908,0.00019988,2]
[426840347,1782936639000,-875.44063908,0.00019988,2]
[426840349,1782936639000,-875.44063908,0.00019988,2]
[426840353,1782936639000,-875.44063908,0.00019988,2]
[426840340,1782936639000,-257.55656438,0.00019988,2]
[426840379,1782936639000,-1000.0,0.0002019,2]
[426840390,1782936639000,-160.0,0.00020294,7]
[426840380,1782936639000,-1000.0,0.0002019,2]
[426840407,1782936639000,-186.0,0.00027106,2]
[426840410,1782936639000,-196.07007366,0.00027995,2]
[426840419,1782936639000,-160.0,0.00028709,2]
[426840409,1782936639000,-1000.0,0.00027496,2]
[426840411,1782936639000,-160.0,0.00028,3]
[426840412,1782936639000,-219.695,0.00028456,2]
[426840413,1782936639000,-241.648,0.00028456,2]
[426840417,1782936639000,-1843.0,0.00028456,2]
[426840415,1782936639000,-1422.0,0.00028456,2]
[426840418,1782936639000,-184.32844456,0.00028707,2]
[426840414,1782936639000,-179.43965549,0.00028456,2]
[426840416,1782936639000,-2217.0,0.00028456,2]
[426840420,1782936639000,-160.0,0.00028709,2]
[426840421,1782936639000,-417.15472785,0.00028709,2]
[426840423,1782936639000,-160.0,0.00028709,2]
[426840426,1782936639000,-392.14014733,0.00028983,2]
[426840424,1782936639000,-160.0,0.00028709,2]
[426840425,1782936639000,-300.0,0.00028776,2]
[426840422,1782936639000,-160.0,0.00028709,2]
[426840427,1782936639000,-250.73833822,0.00029,2]
[426840378,1782936639000,-1000.0,0.0002019,2]
[426840429,1782936639000,-447.74703254,0.00029,2]
[426840428,1782936639000,-286.55810083,0.00029,2]
[426840408,1782936639000,-280.0,0.00027418,2]
[426840404,1782936639000,-162.0,0.00026411,20]
[426840430,1782936639000,-193.31399378,0.00029,2]
[426840402,1782936639000,-161.782,0.00024,5]
[426840406,1782936639000,-446.0,0.00027106,2]
[426840382,1782936639000,-1000.0,0.0002019,2]
[426840386,1782936639000,-1000.0,0.0002019,2]
[426840389,1782936639000,-5803.00413224,0.00020294,7]
[426840388,1782936639000,-1000.0,0.0002019,2]
[426840387,1782936639000,-1000.0,0.0002019,2]
[426840394,1782936639000,-5803.00413224,0.00020891,7]
[426840384,1782936639000,-1000.0,0.0002019,2]
[426840385,1782936639000,-1000.0,0.0002019,2]
[426840391,1782936639000,-417.15472785,0.00020294,7]
[426840381,1782936639000,-1000.0,0.0002019,2]
[426840383,1782936639000,-1000.0,0.0002019,2]
[426840392,1782936639000,-160.0,0.00020294,7]
[426840405,1782936639000,-160.0,0.00027,3]
[426840393,1782936639000,-372.36544401,0.00020891,7]
[426840397,1782936639000,-5803.00413228,0.00022283,7]
[426840401,1782936639000,-160.0,0.00024,7]
[426840403,1782936639000,-217.2857752,0.00024877,2]
[426840398,1782936639000,-160.0,0.00023,2]
[426840400,1782936639000,-160.0,0.00024,7]
[426840396,1782936639000,-180.42472336,0.000219,30]
[426840395,1782936639000,-5803.00413224,0.00021488,7]
[426840399,1782936639000,-160.0,0.00024,7]
[426840448,1782936640000,-160.0,0.00029231,2]
[426840434,1782936640000,-433.35648774,0.00029,2]
[426840447,1782936640000,-290.0,0.00029231,2]
[426840445,1782936640000,-3000.0,0.0002923,2]
[426840444,1782936640000,-3000.0,0.0002922,2]
[426840437,1782936640000,-294.3485433,0.00029,2]
[426840443,1782936640000,-3000.0,0.0002921,2]
[426840440,1782936640000,-429.52157862,0.00029041,2]
[426840438,1782936640000,-336.39833519,0.00029,2]
[426840436,1782936640000,-347.61722362,0.00029,2]
[426840439,1782936640000,-525.62239874,0.00029,2]
[426840441,1782936640000,-1724.9018897,0.00029119,2]
[426840435,1782936640000,-677.1195121,0.00029,2]
[426840433,1782936640000,-379.18692677,0.00029,2]
[426840432,1782936640000,-644.11097113,0.00029,2]
[426840431,1782936640000,-166.11615413,0.00029,2]
[426840449,1782936640000,-3000.0,0.0002924,2]
[426840442,1782936640000,-3000.0,0.000292,2]
[426840451,1782936640000,-155.713482,0.00029252,7]
[426840459,1782936640000,-267.324636,0.00029252,7]
[426840452,1782936640000,-151.0,0.00029252,7]
[426840476,1782936640000,-334.14495828,0.00029265,30]
[426840475,1782936640000,-78860.09989957,0.00029265,30]
[426840474,1782936640000,-88090.64844287,0.00029265,30]
[426840462,1782936640000,-270.0,0.00029256,2]
[426840461,1782936640000,-190.0,0.00029256,2]
[426840450,1782936640000,-3000.0,0.0002925,2]
[426840467,1782936640000,-522197.50571638,0.00029265,30]
[426840466,1782936640000,-155.1157,0.00029264,2]
[426840458,1782936640000,-151.0,0.00029252,7]
[426840460,1782936640000,-250.1948,0.00029254,2]
[426840465,1782936640000,-3000.0,0.0002926,2]
[426840463,1782936640000,-10000.0,0.00029258,2]
[426840457,1782936640000,-151.0,0.00029252,7]
[426840455,1782936640000,-151.0,0.00029252,7]
[426840456,1782936640000,-151.0,0.00029252,7]
[426840446,1782936640000,-1000.0,0.0002923,2]
[426840453,1782936640000,-151.0,0.00029252,7]
[426840454,1782936640000,-151.0,0.00029252,7]
[426840464,1782936640000,-153.8711,0.00029258,2]
[426843682,1782936934000,267.98978763,0.0001,2]
[426843686,1782936995000,186.44294446,0.0001,2]
[426843696,1782937831000,-154.0,0.00028,2]
[426843697,1782937831000,-160.0,0.00028,3]
[426843693,1782937831000,-160.0,0.00027,3]
[426843699,1782937831000,-186.0,0.00028432,2]
[426843694,1782937831000,-160.69,0.00027263,5]
[426843701,1782937831000,-154.0,0.00029,2]
[426843700,1782937831000,-228.74841927,0.00028991,2]
[426843695,1782937831000,-160.0,0.00027982,2]
[426843698,1782937831000,-160.0,0.00028,3]
[426843702,1782937831000,-783.76,0.00029098,30]
[426843703,1782937831000,-300.0,0.00029112,2]
[426843704,1782937831000,-219.38434684,0.00029113,2]
[426843736,1782937838000,-160.0,0.00029129,2]
[426843742,1782937838000,-180.28959507,0.0002918,2]
[426843740,1782937838000,-663.91474815,0.0002918,2]
[426843738,1782937838000,-1000.28986724,0.00029131,2]
[426843735,1782937838000,-160.0,0.00029129,2]
[426843734,1782937838000,-98.67947832,0.00029129,2]
[426843728,1782937838000,-417.15472785,0.00029129,2]
[426843731,1782937838000,-61.32052168,0.00029129,2]
[426843726,1782937838000,-160.0,0.00029121,2]
[426843745,1782937838000,-663.91474815,0.0002918,2]
[426843737,1782937838000,-160.0,0.00029129,2]
[426843751,1782937838000,-663.91474815,0.0002918,2]
[426843744,1782937838000,-663.91474815,0.0002918,2]
[426843749,1782937838000,-663.91474815,0.0002918,2]
[426843750,1782937838000,-663.91474815,0.0002918,2]
[426843754,1782937838000,-13680.58112827,0.000292,2]
[426843752,1782937838000,-4169.14236673,0.000292,2]
[426843753,1782937838000,-42323.35725372,0.000292,2]
[426843739,1782937838000,-770.56567894,0.00029145,120]
[426843747,1782937838000,-663.91474815,0.0002918,2]
[426843741,1782937838000,-663.91474815,0.0002918,2]
[426843748,1782937838000,-663.91474815,0.0002918,2]
[426843746,1782937838000,-663.91474815,0.0002918,2]
[426843743,1782937838000,-663.91474815,0.0002918,2]
[426843803,1782938314000,421.3132549,0.00027596,120]
[426843807,1782938903000,590.94936228,0.00015,2]
[426843808,1782938908000,174.7,0.00015,2]
[426843810,1782938910000,380.96,0.0001,2]
[426843809,1782938910000,208171.6896773,7.6e-05,2]
[426843811,1782938914000,8331.75247282,0.0001,2]
[426843812,1782938917000,32470.70914044,0.00012,2]
[426843814,1782938944000,1000.0,0.00029256,30]
[426843815,1782938975000,166.66666667,0.000102,2]
[426843841,1782939034000,166.66666667,0.000102,2]
[426843936,1782939046000,-173.23862759,0.00027397,7]
[426843941,1782939046000,-186.0,0.00028366,2]
[426843938,1782939046000,-161.0,0.00028,2]
[426843937,1782939046000,-164.068084,0.00027797,2]
[426843940,1782939046000,-2217.0,0.00028366,2]
[426843943,1782939046000,-500.0,0.00028523,2]
[426843935,1782939046000,-160.0,0.00027396,2]
[426843944,1782939046000,-417.15472785,0.00028589,2]
[426843942,1782939046000,-500.0,0.00028523,2]
[426843950,1782939046000,-562.03856056,0.00028619,2]
[426843949,1782939046000,-160.0,0.00028589,2]
[426843947,1782939046000,-160.0,0.00028589,2]
[426843939,1782939046000,-160.0,0.00028,3]
[426843948,1782939046000,-160.0,0.00028589,2]
[426843945,1782939046000,-160.0,0.00028589,2]
[426843946,1782939046000,-160.0,0.00028589,2]
[426843953,1782939047000,-590.88412585,0.00028619,2]
[426843954,1782939047000,-590.88412585,0.00028619,2]
[426843957,1782939047000,-590.88412585,0.00028619,2]
[426843951,1782939047000,-28.84556529,0.00028619,2]
[426843956,1782939047000,-590.88412585,0.00028619,2]
[426843958,1782939047000,-590.88412585,0.00028619,2]
[426843960,1782939047000,-274.21096228,0.00028619,2]
[426843959,1782939047000,-590.88412585,0.00028619,2]
[426843963,1782939228000,1000.0,0.000286,120]
[426843964,1782939228000,1000.0,0.000286,120]
[426843965,1782939228000,1000.0,0.000286,120]
[426843967,1782939228000,1000.0,0.000286,120]
[426843966,1782939228000,1000.0,0.000286,120]
[426843969,1782939228000,1000.0,0.000286,120]
[426843971,1782939228000,1000.0,0.000286,120]
[426843972,1782939228000,1000.0,0.000286,120]
[426843968,1782939228000,1000.0,0.000286,120]
[426843970,1782939228000,1000.0,0.000286,120]
[426843973,1782939257000,1000.0,0.000286,120]
[426843977,1782939258000,1000.0,0.000286,120]
[426843974,1782939258000,1000.0,0.000286,120]
[426843975,1782939258000,1000.0,0.000286,120]
[426843976,1782939258000,1000.0,0.000286,120]
[426843979,1782939258000,1000.0,0.000286,120]
[426843980,1782939258000,1000.0,0.000286,120]
[426843978,1782939258000,1000.0,0.000286,120]
[426843983,1782939258000,1000.0,0.000286,120]
[426843981,1782939258000,1000.0,0.000286,120]
[426843982,1782939258000,1000.0,0.000286,120]
[426843991,1782939259000,1000.0,0.000286,120]
[426843990,1782939259000,1000.0,0.000286,120]
[426843989,1782939259000,1000.0,0.000286,120]
[426843988,1782939259000,1000.0,0.000286,120]
[426843987,1782939259000,1000.0,0.000286,120]
[426843986,1782939259000,1000.0,0.000286,120]
[426843985,1782939259000,1000.0,0.000286,120]
[426843984,1782939259000,1000.0,0.000286,120]
[426843992,1782939260000,1000.0,0.000286,120]
[426843993,1782939504000,4806.0,0.00028767,120]
[426843994,1782939572000,166.66666667,0.0001,29]
[426843999,1782939710000,2012.55,0.00028767,120]
[426843998,1782939710000,-318.39,0.0002185,2]
[426844000,1782939727000,-1181.61,0.00022,2]
[426844049,1782940240000,-318.39,0.00022617,2]
[426844055,1782940240000,-318.39,0.0002415,2]
[426844053,1782940240000,-756.13935793,0.00023776,2]
[426844058,1782940240000,-166.77,0.00025031,2]
[426844048,1782940240000,-318.39,0.00022233,2]
[426844052,1782940240000,-318.39,0.00023767,2]
[426844047,1782940240000,-252.2239878,0.00022,2]
[426844046,1782940240000,-156.221,0.000219,2]
[426844050,1782940240000,-318.39,0.00023,2]
[426844054,1782940240000,-974.07704532,0.00023784,2]
[426844063,1782940240000,-160.0,0.0002769,2]
[426844056,1782940240000,-937.63469141,0.00024178,2]
[426844057,1782940240000,-380.0,0.00025,2]
[426844065,1782940240000,-300.0,0.00028365,2]
[426844066,1782940240000,-1696.09754381,0.00028366,2]
[426844060,1782940240000,-158.7715018,0.00027183,2]
[426844061,1782940240000,-186.0,0.0002759,2]
[426844059,1782940240000,-201.692673,0.00025237,2]
[426844064,1782940240000,-1634.883567,0.00027831,2]
[426844062,1782940240000,-435.8693283,0.000276,2]
[426844051,1782940240000,-318.39,0.00023383,2]
[426844154,1782940249000,-710.49104486,0.00028413,2]
[426844157,1782940249000,-710.49104486,0.00028413,2]
[426844156,1782940249000,-710.49104486,0.00028413,2]
[426844155,1782940249000,-710.49104486,0.00028413,2]
[426844150,1782940249000,-199.53810787,0.00028413,2]
[426844147,1782940249000,-520.90245619,0.00028366,2]
[426844153,1782940249000,-710.49104486,0.00028413,2]
[426844151,1782940249000,-710.49104486,0.00028413,2]
[426844149,1782940249000,-510.95293699,0.00028413,2]
[426844148,1782940249000,-211.65621126,0.00028398,2]
[426844152,1782940249000,-710.49104486,0.00028413,2]
[426844158,1782940249000,-710.49104486,0.00028413,2]
[426844159,1782940249000,-710.49104486,0.00028413,2]
[426844163,1782940249000,-500.0,0.00028413,2]
[426844161,1782940249000,-500.0,0.00028413,2]
[426844172,1782940249000,-755.70411134,0.00028413,2]
[426844171,1782940249000,-755.70411134,0.00028413,2]
[426844170,1782940249000,-710.49104486,0.00028413,2]
[426844169,1782940249000,-710.49104486,0.00028413,2]
[426844160,1782940249000,-495.92229594,0.00028413,2]
[426844167,1782940249000,-500.0,0.00028413,2]
[426844165,1782940249000,-500.0,0.00028413,2]
[426844166,1782940249000,-573.1513738,0.00028413,2]
[426844168,1782940249000,-710.49104486,0.00028413,2]
[426844164,1782940249000,-710.49104486,0.00028413,2]
[426844162,1782940249000,-710.49104486,0.00028413,2]
[426844188,1782940250000,-417.15472785,0.00028587,2]
[426844187,1782940250000,-160.0,0.00028587,2]
[426844185,1782940250000,-644.77191247,0.00028516,2]
[426844182,1782940250000,-22273.96127206,0.0002846,2]
[426844181,1782940250000,-755.70411134,0.00028413,2]
[426844180,1782940250000,-755.70411134,0.00028413,2]
[426844177,1782940250000,-755.70411134,0.00028413,2]
[426844176,1782940250000,-755.70411134,0.00028413,2]
[426844178,1782940250000,-755.70411134,0.00028413,2]
[426844186,1782940250000,-500.0,0.00028516,2]
[426844174,1782940250000,-755.70411134,0.00028413,2]
[426844175,1782940250000,-755.70411134,0.00028413,2]
[426844183,1782940250000,-582.38,0.00028498,2]
[426844184,1782940250000,-500.0,0.00028498,7]
[426844173,1782940250000,-755.70411134,0.00028413,2]
[426844179,1782940250000,-755.70411134,0.00028413,2]
[426844193,1782940250000,-582.38,0.00028599,2]
[426844192,1782940250000,-582.38,0.00028599,2]
[426844198,1782940250000,-500.0,0.00028599,7]
[426844203,1782940250000,-238.13923908,0.00028599,7]
[426844200,1782940250000,-500.0,0.00028599,7]
[426844205,1782940250000,-500.0,0.00028599,7]
[426844206,1782940250000,-501.63969675,0.00028599,7]
[426844191,1782940250000,-500.0,0.00028598,2]
[426844208,1782940250000,-5109.00240495,0.000286,20]
[426844202,1782940250000,-500.0,0.00028599,7]
[426844204,1782940250000,-500.0,0.00028599,7]
[426844201,1782940250000,-500.0,0.00028599,7]
[426844207,1782940250000,-500.0,0.00028599,7]
[426844197,1782940250000,-500.0,0.00028599,7]
[426844196,1782940250000,-233.68902622,0.00028599,7]
[426844190,1782940250000,-160.0,0.00028587,2]
[426844194,1782940250000,-500.0,0.00028599,7]
[426844189,1782940250000,-160.0,0.00028587,2]
[426844195,1782940250000,-500.0,0.00028599,7]
[426844199,1782940250000,-500.0,0.00028599,7]
[426844268,1782941432000,-168.07022042,0.00028226,7]
[426844267,1782941432000,-151.5,0.00028226,7]
[426844274,1782941432000,-186.0,0.0002825,2]
[426844266,1782941432000,-151.5,0.00028226,7]
[426844270,1782941432000,-152.40641796,0.00028226,7]
[426844265,1782941432000,-160.0,0.00027627,2]
[426844269,1782941432000,-151.5,0.00028226,7]
[426844271,1782941432000,-151.5,0.00028226,7]
[426844272,1782941432000,-151.5,0.00028226,7]
[426844276,1782941432000,-151.5,0.00028349,2]
[426844273,1782941432000,-266.2207078,0.00028226,7]
[426844277,1782941432000,-151.5,0.00028349,2]
[426844278,1782941432000,-151.5,0.00028349,2]
[426844282,1782941432000,-12190.66694562,0.000284,2]
[426844279,1782941432000,-151.5,0.00028349,2]
[426844280,1782941432000,-194.0,0.00028349,2]
[426844281,1782941432000,-285.9057082,0.00028398,2]
[426844275,1782941432000,-172.48,0.0002825,2]
[426844379,1782941443000,-1989.3313377,0.000284,2]
[426844415,1782941444000,-454.10250971,0.000284,2]
[426844832,1782941447000,-520.78993588,0.00028499,2]
[426844826,1782941447000,-520.78993588,0.00028499,2]
[426844834,1782941447000,-520.78993588,0.00028499,2]
[426844830,1782941447000,-520.78993588,0.00028499,2]
[426844815,1782941447000,-678.683042,0.00028499,7]
[426844824,1782941447000,-520.78993588,0.00028499,2]
[426844820,1782941447000,-520.78993588,0.00028499,2]
[426844839,1782941447000,-520.78993588,0.00028499,2]
[426844822,1782941447000,-520.78993588,0.00028499,2]
[426844809,1782941447000,-678.683042,0.00028499,7]
[426844817,1782941447000,-151.0,0.00028499,7]
[426844819,1782941447000,-520.78993588,0.00028499,2]
[426844811,1782941447000,-678.683042,0.00028499,7]
[426844837,1782941447000,-520.78993588,0.00028499,2]
[426844807,1782941447000,-678.683042,0.00028499,7]
[426844805,1782941447000,-500.0,0.00028459,7]
[426844813,1782941447000,-151.0,0.00028499,7]
[426844803,1782941447000,-500.0,0.00028414,7]
[426844801,1782941447000,-500.0,0.00028413,7]
[426844798,1782941447000,-2243.2750446,0.000284,2]
[426844828,1782941447000,-520.78993588,0.00028499,2]
[426844841,1782941447000,-520.78993588,0.00028499,2]
[426844851,1782941447000,-528.80208874,0.00028499,2]
[426844845,1782941447000,-528.80208874,0.00028499,2]
[426844881,1782941447000,-678.683042,0.000285,7]
[426844886,1782941447000,-2946.063013,0.000285,7]
[426844879,1782941447000,-151.0,0.000285,7]
[426844883,1782941447000,-202.05116,0.000285,7]
[426844884,1782941447000,-3281.828726,0.000285,7]
[426844869,1782941447000,-601.78711838,0.000285,2]
[426844875,1782941447000,-678.683042,0.000285,7]
[426844873,1782941447000,-678.683042,0.000285,7]
[426844866,1782941447000,-624.32762735,0.00028499,2]
[426844847,1782941447000,-528.80208874,0.00028499,2]
[426844877,1782941447000,-678.683042,0.000285,7]
[426844860,1782941447000,-528.80208874,0.00028499,2]
[426844859,1782941447000,-528.80208874,0.00028499,2]
[426844857,1782941447000,-528.80208874,0.00028499,2]
[426844862,1782941447000,-624.32762735,0.00028499,2]
[426844865,1782941447000,-624.32762735,0.00028499,2]
[426844849,1782941447000,-528.80208874,0.00028499,2]
[426844853,1782941447000,-528.80208874,0.00028499,2]
[426844843,1782941447000,-528.80208874,0.00028499,2]
[426844855,1782941447000,-528.80208874,0.00028499,2]
[426844871,1782941447000,-174.047602,0.000285,7]
[426844761,1782941447000,-3315.49868534,0.000284,2]
[426845015,1782941794000,181.48968118,0.0001,2]
[426845016,1782941853000,181.48968119,0.0001,2]
[426845017,1782941915000,181.48968119,0.0001,29]
[426845018,1782942092000,186.44294445,0.0001,29]
[426845020,1782942282000,1542.42999933,0.00013,2]
[426845019,1782942282000,1542.42999933,0.00013,2]
[426845025,1782942499000,190.69419277,0.00015,2]
[426845026,1782942510000,1591.3413377,0.00015,2]
[426845027,1782942517000,14503.04556202,7.6e-05,2]
[426845028,1782942524000,5293.80545111,0.00012,2]